bitfinex-derivatives/quotes_ETHF0:USTF0_20250612
["timestamp","ask_amount","ask_price","bid_price","bid_amount"]
[1749702209013,1.31987,2754.0,2753.9,62.176]
[1749702209417,1.31987,2754.0,2753.9,62.9021]
[1749702209615,0.5938,2754.0,2753.9,62.9021]
[1749702209816,1.31987,2754.0,2753.9,62.176]
[1749702210207,0.5938,2754.0,2753.9,62.176]
[1749702210412,0.5938,2754.0,2753.9,62.9021]
[1749702210918,0.5938,2754.0,2753.9,41.5261]
[1749702211118,0.5938,2754.0,2753.9,62.9021]
[1749702212014,1.31987,2754.0,2753.9,62.176]
[1749702212329,4.52767,2754.0,2753.9,45.264]
[1749702212508,4.52767,2754.0,2753.9,4.464]
[1749702212714,4.52767,2754.0,2753.9,20.4014]
[1749702212715,5.98014741,2754.0,2753.9,20.4014]
[1749702212918,10.98014741,2754.0,2753.9,20.4014]
[1749702213119,0.72615,2753.7,2753.4,40.8]
[1749702213321,0.72615,2753.7,2753.6,43.342]
[1749702213715,0.72615,2753.7,2753.6,26.43]
[1749702213915,0.72615,2753.7,2753.6,43.342]
[1749702214815,8.93395,2753.7,2753.6,21.376]
[1749702215016,10.38658355,2753.7,2753.6,21.376]
[1749702215210,10.38658355,2753.7,2753.6,4.464]
[1749702215414,10.38658355,2753.7,2753.6,3.4893]
[1749702215622,10.38658355,2753.7,2753.6,20.4013]
[1749702216524,4.66043355,2753.7,2753.6,21.12748]
[1749702216723,1.45263355,2753.7,2753.6,21.12748]
[1749702217026,2.17871693,2753.7,2753.6,21.12746]
[1749702217216,0.72615,2753.7,2753.6,20.4013]
[1749702217417,0.72615,2753.7,2753.6,21.12748]
[1749702217820,0.72615,2753.7,2753.6,20.4013]
[1749702218023,0.72611,2753.9,2753.8,0.72612]
[1749702218225,2.04352377,2754.0,2753.6,20.4013]
[1749702218419,1.9203,2753.9,2753.8,0.72612]
[1749702218619,0.72615,2753.7,2753.6,21.12746]
[1749702218813,0.72619,2753.6,2753.5,0.72619]
[1749702219021,3.8083,2753.8,2753.5,21.377]
[1749702219326,0.72618,2753.6,2753.5,22.10319]
[1749702219520,1.1942,2753.7,2753.6,0.72618]
[1749702220424,0.6005,2753.8,2753.7,0.72615]
[1749702221128,0.5938,2754.0,2753.9,0.7261]
[1749702221329,3.2078,2754.1,2754.0,0.72607]
[1749702221723,3.2078,2754.1,2753.9,22.10309]
[1749702222029,0.5869,2754.3,2753.9,21.377]
[1749702222228,0.72602,2754.2,2753.9,21.377]
[1749702222423,0.5869,2754.3,2753.9,21.377]
[1749702222621,3.8216,2754.4,2754.3,0.72599]
[1749702222823,4.54756,2754.4,2754.3,21.377]
[1749702223029,4.54756,2754.4,2754.3,62.177]
[1749702223623,1.33976,2754.4,2754.3,62.177]
[1749702224132,0.72595,2754.5,2754.3,62.90299]
[1749702224324,0.72596,2754.4,2754.3,62.177]
[1749702224623,3.93376,2754.4,2754.3,62.181]
[1749702224925,3.93376,2754.4,2754.3,21.381]
[1749702225128,3.2078,2754.4,2753.8,25.8959]
[1749702225325,0.72609,2754.0,2753.9,40.8]
[1749702225529,0.72609,2754.0,2753.9,62.178]
[1749702226017,0.72609,2754.0,2753.9,62.9041]
[1749702226420,0.72606,2754.1,2754.0,0.72606]
[1749702226628,1.31093,2754.2,2754.1,0.72604]
[1749702227222,0.5849,2754.2,2754.1,0.72604]
[1749702227427,0.72598,2754.4,2754.3,0.72599]
[1749702227624,3.2078,2754.4,2754.3,22.10699]
[1749702227924,0.72601,2754.3,2754.1,0.5887]
[1749702228230,0.72599,2754.3,2754.2,21.386]
[1749702228427,3.93379,2754.3,2754.2,21.386]
[1749702228630,0.72599,2754.3,2754.2,21.386]
[1749702229026,1.2879,2754.4,2754.1,0.5887]
[1749702229027,0.72602,2754.2,2754.1,0.5887]
[1749702229229,0.72602,2754.2,2754.1,21.9727]
[1749702230129,0.72602,2754.2,2754.1,22.69874]
[1749702231331,0.72602,2754.2,2754.1,22.69872]
[1749702231626,3.7958,2754.7,2754.1,21.9727]
[1749702231830,0.72598,2754.4,2754.3,0.72599]
[1749702232629,0.72599,2754.3,2754.2,0.72602]
[1749702232833,3.93377,2754.4,2754.3,0.72599]
[1749702233430,3.2078,2754.4,2754.1,21.9727]
[1749702233633,3.93378,2754.4,2754.3,0.72599]
[1749702234134,0.72602,2754.2,2754.1,21.9727]
[1749702234734,0.72602,2754.2,2754.1,21.9647]
[1749702235342,0.72602,2754.2,2754.1,0.5887]
[1749702235542,0.72602,2754.2,2754.1,21.9637]
[1749702235743,0.7261,2753.9,2753.8,21.962]
[1749702235944,0.7261,2753.9,2753.8,44.06312]
[1749702236543,3.9339,2753.9,2753.8,21.962]
[1749702236846,3.9339,2753.9,2753.8,43.337]
[1749702237247,3.9339,2753.9,2753.8,43.336]
[1749702237750,3.9339,2753.9,2753.8,21.962]
[1749702238049,5.38490753,2753.9,2753.8,26.425]
[1749702238243,11.47408753,2753.9,2753.7,4.463]
[1749702238550,3.45852753,2753.8,2753.7,4.463]
[1749702238749,3.45852753,2753.8,2753.7,21.374]
[1749702240347,3.9339,2753.9,2753.8,0.72612]
[1749702240550,0.72612,2753.8,2753.7,21.374]
[1749702240750,2.17742916,2753.8,2753.7,21.374]
[1749702241046,3.43152916,2753.8,2753.7,21.376]
[1749702242751,0.7262,2753.5,2753.4,0.5895]
[1749702243053,0.72611,2753.9,2753.6,4.464]
[1749702243251,0.72611,2753.9,2753.8,0.72612]
[1749702243452,2.17851985,2753.9,2753.8,0.72612]
[1749702243648,1.8897,2754.2,2753.7,16.913]
[1749702243851,1.45245409,2754.1,2753.8,0.7261]
[1749702244046,3.9339,2753.9,2753.8,0.72612]
[1749702244241,3.2078,2753.9,2753.8,0.72612]
[1749702244555,0.72608,2754.0,2753.9,0.72609]
[1749702244749,0.6,2754.3,2753.7,0.6269]
[1749702244950,3.2078,2754.1,2753.8,21.377]
[1749702245151,2.64637728,2754.0,2753.9,21.377]
[1749702245350,0.72618,2753.6,2753.5,0.72618]
[1749702245554,0.72618,2753.6,2753.5,5.19018]
[1749702245752,0.72618,2753.6,2753.5,21.377]
[1749702245952,0.72618,2753.6,2753.5,22.1032]
[1749702246254,0.72617,2753.7,2753.6,0.72617]
[1749702246455,0.72618,2753.6,2753.5,22.10319]
[1749702246755,1.7981,2754.0,2753.5,21.377]
[1749702246958,0.72615,2753.7,2753.6,0.72618]
[1749702247756,0.72615,2753.7,2753.5,22.10319]
[1749702248053,3.2078,2753.8,2753.6,21.377]
[1749702248256,0.72615,2753.7,2753.6,21.377]
[1749702248555,3.93395,2753.7,2753.6,21.377]
[1749702248755,3.93395,2753.7,2753.2,1.24305108]
[1749702248756,0.72625,2753.3,2753.2,0.00545108]
[1749702249050,3.93405,2753.3,2753.2,0.00545108]
[1749702249254,3.93405,2753.3,2753.2,16.91845108]
[1749702249557,5.38637822,2753.3,2753.2,16.91845108]
[1749702249950,5.38637822,2753.3,2753.2,17.64473108]
[1749702250155,1.45232822,2753.3,2753.2,17.64473108]
[1749702250657,1.45232822,2753.3,2753.2,16.91845108]
[1749702250858,2.17857822,2753.3,2753.2,0.00545108]
[1749702251050,2.17857822,2753.3,2753.2,16.91845108]
[1749702251252,3.35397822,2753.3,2753.2,16.91845108]
[1749702253054,3.35397822,2753.3,2753.2,0.00545108]
[1749702253452,3.35397822,2753.3,2753.2,16.91945108]
[1749702254856,3.35397822,2753.3,2753.2,0.00545108]
[1749702255059,3.35397822,2753.3,2753.2,21.38445108]
[1749702255259,3.35397822,2753.3,2753.2,16.92045108]
[1749702255657,1.45232822,2753.3,2753.2,16.92045108]
[1749702255860,1.45232822,2753.3,2753.2,17.64673108]
[1749702255861,2.17857822,2753.3,2753.2,17.64673108]
[1749702256055,2.17857822,2753.3,2753.2,16.92045108]
[1749702256359,2.17857822,2753.3,2753.2,0.00545108]
[1749702256654,3.36987822,2753.3,2753.2,16.92045108]
[1749702256859,3.36987822,2753.3,2753.2,0.00545108]
[1749702257253,8.36987822,2753.3,2753.2,0.00545108]
[1749702257557,8.36987822,2753.3,2753.2,16.92045108]
[1749702257759,8.36987822,2753.3,2753.2,0.00545108]
[1749702259256,8.66497323,2753.3,2753.2,1.08e-06]
[1749702259555,3.2078,2752.4,2750.9,0.016]
[1749702259764,3.2078,2751.3,2751.2,0.6057]
[1749702259957,3.2078,2751.6,2751.5,0.72673]
[1749702260160,2.5089,2752.3,2751.5,4.465]
[1749702260368,1.2626,2752.3,2752.2,0.72655]
[1749702260656,3.2078,2752.7,2752.6,0.72644]
[1749702260857,0.00545108,2752.9,2752.6,4.465]
[1749702261057,0.00545108,2752.9,2752.3,0.6414]
[1749702261058,0.00545108,2752.9,2752.8,0.72639]
[1749702261263,0.00545108,2752.9,2752.8,5.19139]
[1749702261459,0.00545108,2752.9,2752.8,5.83279]
[1749702262159,0.00545108,2752.9,2752.8,7.10229]
[1749702262761,0.00545108,2752.9,2752.8,12.10229]
[1749702263665,0.00545108,2752.9,2752.8,15.31009]
[1749702264367,0.00545108,2752.9,2752.8,10.31009]
[1749702264662,0.00545108,2752.9,2752.8,15.31009]
[1749702265362,0.00545108,2752.9,2752.8,10.31009]
[1749702266165,0.00545108,2752.9,2752.8,51.11009]
[1749702266567,0.5447,2753.5,2753.4,0.72623]
[1749702266864,0.5447,2753.5,2753.4,44.07823]
[1749702267369,0.5447,2753.5,2753.4,84.87823]
[1749702267870,0.5447,2753.5,2753.4,88.08603]
[1749702268364,0.5447,2753.5,2753.4,89.26763]
[1749702268565,0.5447,2753.5,2753.4,94.26763]
[1749702268968,0.00545108,2753.7,2753.6,0.72618]
[1749702270465,0.00545108,2753.7,2753.6,5.72618]
[1749702270661,0.2904,2754.1,2754.0,0.72607]
[1749702270865,0.2904,2754.1,2754.0,22.10607]
[1749702273666,0.2904,2754.1,2754.0,23.36977]
[1749702273970,3.93362,2755.0,2754.1,1.81511]
[1749702274174,3.2078,2755.0,2754.3,3.2078]
[1749702274371,3.2078,2755.0,2754.4,85.4057]
[1749702274575,3.2078,2755.0,2754.9,0.72583]
[1749702274771,5.047,2755.4,2754.9,22.10383]
[1749702274976,5.05245108,2755.4,2755.0,0.7258]
[1749702275279,3.75755108,2755.4,2755.2,0.72573]
[1749702275475,4.48325108,2755.4,2755.3,21.377]
[1749702275675,3.93895108,2755.4,2755.3,21.377]
[1749702276172,3.21325108,2755.4,2755.3,21.377]
[1749702276478,3.93895108,2755.4,2755.3,21.377]
[1749702276677,3.21325108,2755.4,2755.3,22.10273]
[1749702276976,0.00545108,2755.4,2755.3,25.30853]
[1749702277579,0.00545108,2755.4,2755.3,66.10853]
[1749702277778,0.00545108,2755.4,2755.3,71.10853]
[1749702278175,1.08e-06,2755.4,2755.3,71.10853]
[1749702278375,3.2078,2756.1,2756.0,0.72554]
[1749702278679,0.6276,2756.4,2756.3,0.72546]
[1749702278978,1.26949,2756.6,2756.3,0.72545]
[1749702279180,1.26949,2756.6,2756.4,21.377]
[1749702279370,3.2078,2756.5,2756.4,21.377]
[1749702279579,0.72543,2756.5,2756.4,21.376]
[1749702279978,0.72541,2756.5,2756.4,21.376]
[1749702280280,0.5441,2756.6,2756.1,1.2406]
[1749702280474,0.5441,2756.6,2756.3,1.2406]
[1749702280676,3.93324,2756.4,2756.2,0.6408]
[1749702280877,1.2819,2756.5,2756.3,62.213]
[1749702281174,3.93324,2756.4,2756.3,40.8]
[1749702281574,0.72561,2755.8,2755.4,3.2078]
[1749702281775,10.61676,2756.4,2755.4,3.2078]
[1749702281776,3.2078,2756.0,2755.6,21.952]
[1749702281975,1.2923,2755.9,2755.7,40.8]
[1749702282172,2.01788,2755.9,2755.7,40.8]
[1749702282375,2.01789,2755.9,2755.7,40.8]
[1749702282775,2.01789,2755.9,2755.8,21.428]
[1749702283780,3.2078,2756.0,2755.8,22.15358]
[1749702283982,3.93335,2756.0,2755.8,22.15358]
[1749702284184,3.2078,2756.0,2755.9,0.72557]
[1749702284676,3.8031,2756.4,2756.3,0.72547]
[1749702284877,4.52854,2756.4,2756.3,21.431]
[1749702285075,4.52854,2756.4,2756.3,21.429]
[1749702285282,0.72548,2756.3,2756.0,0.72553]
[1749702285482,1.2149,2756.3,2756.1,22.15349]
[1749702285677,3.8031,2756.4,2756.3,0.72547]
[1749702285883,3.8047,2756.7,2756.4,0.72543]
[1749702286080,6.38508,2756.7,2756.5,16.983]
[1749702286284,4.4448,2756.7,2756.6,4.461]
[1749702286576,5.6597,2756.7,2756.6,4.461]
[1749702286782,6.38506,2756.7,2756.6,4.461]
[1749702287172,0.72542,2756.5,2756.3,0.00545108]
[1749702287377,1.204,2756.4,2756.3,0.00545108]
[1749702287574,1.204,2756.4,2756.3,21.44145108]
[1749702288093,1.204,2756.4,2756.3,22.16692108]
[1749702288988,1.92944,2756.4,2756.3,21.44145108]
[1749702289186,1.92944,2756.4,2756.3,0.00545108]
[1749702289383,5.13724,2756.4,2756.3,21.43645108]
[1749702289683,1.92944,2756.4,2756.3,21.43645108]
[1749702289986,3.21325108,2756.8,2756.4,0.72543]
[1749702290191,1.2121,2756.6,2756.3,21.43645108]
[1749702290383,0.72544,2756.4,2756.3,0.00545108]
[1749702290583,3.93324,2756.4,2756.3,21.50145108]
[1749702290785,3.93324,2756.4,2756.3,21.50245108]
[1749702292179,5.38441121,2756.4,2756.3,4.46545108]
[1749702292382,2.17661121,2756.4,2756.3,21.50245108]
[1749702293279,2.17661121,2756.4,2756.3,22.22792108]
[1749702293492,1.45117121,2756.4,2756.3,22.22792108]
[1749702293682,2.17661121,2756.4,2756.3,21.50245108]
[1749702293882,6.65241121,2756.4,2756.3,21.48945108]
[1749702294078,6.65241121,2756.4,2756.3,21.50045108]
[1749702294681,11.65241121,2756.4,2756.3,4.46545108]
[1749702294998,11.65241121,2756.4,2756.3,21.50545108]
[1749702295185,13.80261758,2756.4,2756.3,21.50545108]
[1749702295390,6.65241121,2756.4,2756.3,21.50545108]
[1749702296186,5.92697121,2756.4,2756.3,22.23092108]
[1749702296494,6.65241121,2756.4,2756.3,21.50545108]
[1749702297194,8.80261758,2756.4,2756.3,21.50545108]
[1749702298090,13.80261758,2756.4,2756.3,0.00545108]
[1749702298295,0.72562,2755.7,2755.6,22.67765]
[1749702298499,3.93337,2755.9,2755.8,21.586]
[1749702298697,5.38483996,2755.9,2755.8,21.586]
[1749702298898,1.45146996,2755.9,2755.8,22.3116]
[1749702300293,6.80392701,2755.9,2755.8,4.542]
[1749702300496,5.38483996,2755.9,2755.8,21.596]
[1749702300697,5.38483996,2755.9,2755.8,21.605]
[1749702300998,0.72562,2755.7,2755.6,21.95745108]
[1749702301187,2.17708996,2755.7,2755.6,43.56745108]
[1749702301595,3.45818996,2755.7,2755.6,26.49945108]
[1749702301788,3.45818996,2755.7,2755.6,43.56545108]
[1749702302497,3.45818996,2755.7,2755.6,26.49945108]
[1749702302697,3.45818996,2755.7,2755.6,21.95745108]
[1749702302894,0.72578,2755.1,2755.0,3.2078]
[1749702303093,2.17724996,2755.1,2755.0,21.605]
[1749702303289,7.53587238,2755.1,2755.0,21.604]
[1749702303495,7.84334996,2755.1,2755.0,21.604]
[1749702303696,7.84334996,2755.1,2755.0,4.542]
[1749702303897,7.84334996,2755.1,2755.0,21.618]
[1749702304395,4.65926996,2755.1,2755.0,22.34381]
[1749702304593,3.60398479,2755.1,2755.0,22.34381]
[1749702304898,0.00545108,2755.3,2755.2,0.72576]
[1749702305090,2.86694182,2756.1,2755.2,5.02219]
[1749702305294,0.5442,2756.1,2755.7,3.2078]
[1749702305495,0.72557,2755.9,2755.8,22.2291]
[1749702305898,5.0198,2756.1,2755.8,21.632]
[1749702306107,0.72557,2755.9,2755.8,21.632]
[1749702306502,3.75745108,2756.1,2755.8,21.632]
[1749702306698,0.72557,2755.9,2755.8,21.632]
[1749702308001,0.72557,2755.9,2755.8,22.3576]
[1749702308299,1.27325108,2756.1,2755.8,21.632]
[1749702308502,0.00545108,2756.1,2756.0,0.72554]
[1749702308700,1.2695,2756.6,2756.0,3.2078]
[1749702308906,1.99489,2756.6,2756.4,0.72544]
[1749702309101,3.2078,2756.7,2756.5,22.2786]
[1749702309301,0.72531,2756.9,2756.7,0.72536]
[1749702309502,0.72529,2757.0,2756.7,0.72534]
[1749702309704,3.2132408,2757.1,2756.6,0.7308208]
[1749702309900,3.2132408,2757.1,2756.6,0.0054408]
[1749702310099,0.72533,2756.8,2756.7,21.648]
[1749702310300,0.72532,2756.9,2756.7,22.37336]
[1749702310506,0.72531,2756.9,2756.7,22.37335]
[1749702311405,0.72533,2756.8,2756.7,21.648]
[1749702311705,0.72531,2756.9,2756.7,22.37335]
[1749702311907,0.7253,2757.0,2756.7,22.37335]
[1749702312203,0.72531,2756.9,2756.7,22.37335]
[1749702312403,0.7253,2757.0,2756.8,0.72533]
[1749702312601,0.0054408,2757.1,2757.0,0.72528]
[1749702313304,0.0054408,2757.1,2757.0,3.93308]
[1749702313617,0.72512,2757.7,2757.4,0.72516]
[1749702313798,4.4745,2757.8,2757.5,21.648]
[1749702313799,5.19958,2757.8,2757.5,21.648]
[1749702314003,5.19958,2757.8,2757.6,21.648]
[1749702314304,1.268,2758.0,2757.6,21.648]
[1749702314305,0.72503,2758.0,2757.7,0.7251]
[1749702314605,3.2078,2758.2,2757.7,0.6331]
[1749702314606,0.00346476,2758.1,2757.7,0.6331]
[1749702314809,0.72503,2758.0,2757.7,5.73798]
[1749702315202,0.00346476,2758.1,2757.8,40.8]
[1749702315403,0.00346476,2758.1,2758.0,3.93282]
[1749702315606,0.00346476,2758.1,2758.0,3.2078]
[1749702315806,0.00346476,2758.1,2758.0,21.644]
[1749702315807,0.72845476,2758.1,2758.0,21.644]
[1749702316305,0.00346476,2758.1,2758.0,21.644]
[1749702316505,0.72845476,2758.1,2758.0,21.64]
[1749702317005,1.43791571,2758.1,2758.0,22.36502]
[1749702317206,1.43791571,2758.1,2758.0,25.57282]
[1749702317407,1.43791571,2758.1,2758.0,22.36502]
[1749702318312,1.43791571,2758.1,2758.0,23.56562]
[1749702319011,2.16292571,2758.1,2758.0,21.629]
[1749702319313,0.72503,2758.0,2757.8,62.738]
[1749702319506,0.72503,2758.0,2757.9,21.624]
[1749702319708,1.42832946,2758.0,2757.9,21.624]
[1749702319912,1.42832946,2758.0,2757.9,22.34904]
[1749702320212,0.00346476,2758.1,2757.9,22.34904]
[1749702320712,0.00346476,2758.1,2757.9,23.54963]
[1749702320907,0.72504,2757.9,2757.8,21.938]
[1749702321114,0.72504,2757.9,2757.8,43.558]
[1749702321310,0.72504,2757.9,2757.8,26.478]
[1749702321614,2.1519561,2757.9,2757.8,21.938]
[1749702321815,2.1519561,2757.9,2757.8,43.548]
[1749702321816,4.0449561,2757.9,2757.8,43.548]
[1749702322812,1.81276,2757.7,2757.2,40.8]
[1749702323013,0.72518,2757.4,2757.3,21.613]
[1749702323715,0.72518,2757.4,2757.3,21.611]
[1749702324015,0.72523,2757.2,2757.1,40.8]
[1749702324213,0.72523,2757.2,2757.1,21.612]
[1749702324413,0.72522,2757.3,2757.1,22.33725]
[1749702324916,5.093,2757.6,2757.1,22.33725]
[1749702324917,0.72523,2757.2,2757.1,21.612]
[1749702325918,5.093,2757.6,2757.1,5.26524]
[1749702326211,0.72523,2757.2,2757.1,21.61]
[1749702326811,0.72523,2757.2,2757.1,4.54]
[1749702327114,0.72528,2757.0,2756.9,4.557]
[1749702327419,3.93308,2757.0,2756.9,21.614]
[1749702327722,3.93308,2757.0,2756.9,4.557]
[1749702328013,5.13998,2757.0,2756.9,21.611]
[1749702328715,1.93218,2757.0,2756.9,21.611]
[1749702329518,1.93218,2757.0,2756.9,21.609]
[1749702330515,3.21126476,2758.1,2756.9,8.2078]
[1749702330720,0.72509,2757.8,2757.2,3.2078]
[1749702331015,3.21126476,2758.1,2757.0,25.8941]
[1749702331016,0.00346476,2758.1,2758.0,0.72502]
[1749702331217,0.00346476,2758.1,2758.0,22.40102]
[1749702334818,3.21126476,2758.1,2757.6,1.2804]
[1749702335121,0.72515,2757.5,2757.4,4.557]
[1749702335725,6.8129,2757.5,2756.6,0.6510408]
[1749702335920,1.7929,2757.6,2756.7,21.679]
[1749702335921,3.2078,2757.3,2756.7,21.679]
[1749702336226,0.72526,2757.1,2756.9,0.72529]
[1749702336424,0.72526,2757.1,2757.0,17.84828]
[1749702336627,1.91745,2757.2,2757.0,17.84828]
[1749702336827,1.91745,2757.2,2757.1,4.556]
[1749702337422,1.1922,2757.2,2757.1,5.28126]
[1749702337623,1.91743,2757.2,2757.1,5.28126]
[1749702337922,0.5902,2757.6,2757.1,7.7638]
[1749702338222,0.5902,2757.6,2757.5,0.72515]
[1749702338423,4.4,2757.8,2757.5,21.668]
[1749702338624,1.44378416,2757.7,2757.6,0.72512]
[1749702339228,1.1922,2757.8,2757.7,0.7251]
[1749702339425,1.44464001,2757.9,2757.8,0.72507]
[1749702339627,1.44463853,2757.9,2757.8,0.72507]
[1749702339826,0.00346476,2758.1,2758.0,0.72502]
[1749702340029,0.00346476,2758.1,2758.0,22.39802]
[1749702340227,1.44862148,2758.1,2758.0,22.39802]
[1749702340427,0.00346476,2758.1,2757.5,26.4373]
[1749702340626,0.72506,2757.9,2757.7,0.72508]
[1749702341322,0.72503,2758.0,2757.8,0.72507]
[1749702341529,1.24026476,2758.1,2757.9,0.72503]
[1749702341730,1.96526476,2758.1,2758.0,4.557]
[1749702341923,1.44905516,2758.1,2758.0,5.28202]
[1749702342118,0.00346476,2758.1,2758.0,5.28202]
[1749702342527,0.72846476,2758.1,2757.9,0.72503]
[1749702342731,0.00346476,2758.1,2758.0,22.41102]
[1749702343230,0.00346476,2758.1,2758.0,0.72502]
[1749702343420,0.00346476,2758.1,2758.0,22.40902]
[1749702344028,0.29,2758.3,2758.2,0.72497]
[1749702344332,0.29,2758.3,2758.2,3.93277]
[1749702345034,0.29,2758.3,2758.2,5.12857]
[1749702345832,0.29,2758.3,2758.2,25.61377]
[1749702346434,4.451,2758.8,2758.2,24.8888]
[1749702346635,0.7249,2758.5,2758.3,0.72492]
[1749702346829,0.72494,2758.3,2758.2,3.2078]
[1749702347026,0.72494,2758.3,2758.2,21.692]
[1749702347538,0.72494,2758.3,2758.2,21.689]
[1749702348537,1.96813,2758.4,2758.2,21.689]
[1749702348734,0.72494,2758.3,2758.2,21.689]
[1749702349137,0.72497,2758.2,2758.1,3.2078]
[1749702349336,0.72497,2758.2,2758.1,24.8958]
[1749702349337,1.91997,2758.2,2758.1,24.8958]
[1749702350037,1.91997,2758.2,2758.1,25.62079]
[1749702350239,0.5438,2758.3,2758.2,0.72497]
[1749702350431,0.72497,2758.2,2758.1,25.62078]
[1749702350833,1.26876,2758.3,2758.1,25.62078]
[1749702351128,0.72497,2758.2,2758.1,25.62078]
[1749702351333,1.26876,2758.3,2758.2,0.72497]
[1749702351529,1.26876,2758.3,2758.1,0.72498]
[1749702351530,0.72497,2758.2,2758.1,0.72498]
[1749702351731,0.72497,2758.2,2758.1,21.66]
[1749702352348,0.72499,2758.1,2758.0,0.7304408]
[1749702352538,0.72499,2758.1,2758.0,22.3884408]
[1749702353943,0.72499,2758.1,2758.0,5.2864408]
[1749702354243,1.1545,2758.3,2758.1,0.72499]
[1749702354438,0.5438,2758.3,2758.2,3.93277]
[1749702355142,0.5438,2758.3,2758.2,4.54927]
[1749702357441,0.5438,2758.3,2758.2,18.41947]
[1749702359446,0.5438,2758.3,2758.2,21.62727]
[1749702360646,0.5438,2758.3,2758.2,4.54927]
[1749702360842,0.5438,2758.3,2758.2,22.96447]
[1749702361043,1.98992143,2758.3,2758.2,22.96447]
[1749702361244,0.5438,2758.3,2758.2,26.16827]
[1749702363146,1.223,2759.1,2759.0,0.72476]
[1749702363346,1.223,2759.1,2759.0,22.33076]
[1749702363545,1.44178855,2759.1,2759.0,25.53856]
[1749702363842,1.34566,2759.4,2759.0,24.8138]
[1749702364048,1.44138938,2759.3,2759.0,25.53855]
[1749702364251,1.8469,2759.4,2759.1,21.608]
[1749702364554,1.2259,2759.2,2759.1,22.33272]
[1749702364852,0.72478,2758.9,2758.8,4.568]
[1749702365048,0.72478,2758.9,2758.8,21.61]
[1749702365049,3.93258,2758.9,2758.8,21.61]
[1749702365254,0.72483,2758.7,2758.6,22.65186]
[1749702365544,0.72483,2758.7,2758.6,43.542]
[1749702365745,2.16547598,2758.7,2758.6,43.542]
[1749702365951,4.00407598,2758.7,2758.6,44.26686]
[1749702366245,2.56343,2758.7,2758.6,44.26686]
[1749702366450,2.56343,2758.7,2758.6,43.542]
[1749702367748,2.56343,2758.7,2758.6,43.539]
[1749702367951,2.56343,2758.7,2758.6,43.527]
[1749702368254,4.0064125,2758.7,2758.6,43.527]
[1749702368447,4.00641283,2758.7,2758.6,21.927]
[1749702368650,4.00641283,2758.7,2758.6,43.523]
[1749702370761,2.05568283,2758.7,2758.6,44.24786]
[1749702371252,1.91764,2759.1,2758.6,43.523]
[1749702371449,1.44425084,2759.0,2758.7,5.01985]
[1749702371645,1.2719,2759.3,2758.7,5.01985]
[1749702371646,1.2719,2759.3,2758.8,0.5967]
[1749702371851,2.16915417,2759.2,2759.1,0.72473]
[1749702372055,2.16915417,2759.2,2759.1,5.29273]
[1749702372455,1.44444417,2759.2,2759.1,5.29273]
[1749702372956,1.99659,2759.3,2759.1,5.29273]
[1749702372957,1.2719,2759.3,2759.2,0.7247]
[1749702373156,2.71579599,2759.3,2759.2,17.7517]
[1749702373556,1.99658,2759.3,2759.2,17.7517]
[1749702374053,3.44067739,2759.3,2759.2,17.027]
[1749702374257,3.44067739,2759.3,2759.2,21.586]
[1749702374959,0.72476,2759.0,2758.9,1.32827]
[1749702375257,1.2719,2759.3,2758.9,22.1885]
[1749702375457,1.44379443,2759.2,2759.1,0.72471]
[1749702376458,2.16849443,2759.2,2759.1,0.72471]
[1749702376654,2.16849443,2759.2,2759.1,22.30271]
[1749702376862,2.16849443,2759.2,2759.1,0.72471]
[1749702377059,2.16849443,2759.2,2759.1,22.30171]
[1749702377260,1.44379443,2759.2,2759.1,0.72471]
[1749702377560,0.72468,2759.3,2759.2,0.72469]
[1749702377763,2.16805061,2759.3,2759.2,0.72469]
[1749702378561,1.44337061,2759.3,2759.2,0.72469]
[1749702378762,4.403,2759.5,2759.3,0.72468]
[1749702378960,5.12762,2759.5,2759.4,17.001]
[1749702379265,6.57095217,2759.5,2759.4,17.001]
[1749702381059,1.44333217,2759.5,2759.4,20.93345]
[1749702381264,5.0517,2760.1,2759.5,1.81153]
[1749702381462,5.0517,2760.1,2760.0,0.72449]
[1749702381653,2.02651972,2760.1,2760.0,22.28849]
[1749702382259,1.2587,2760.6,2760.5,0.72436]
[1749702382458,3.42500893,2760.6,2760.5,21.561]
[1749702383572,4.51152893,2760.6,2759.8,3.93233]
[1749702383863,0.72449,2760.0,2759.9,21.573]
[1749702384062,0.72452,2759.9,2759.8,3.2078]
[1749702384261,1.228,2760.2,2759.8,66.30533]
[1749702384460,0.72452,2759.9,2759.8,65.5808]
[1749702384663,0.72452,2759.9,2759.8,24.7808]
[1749702384874,0.72452,2759.9,2759.8,25.50535]
[1749702385062,0.6411,2760.1,2759.8,3.2078]
[1749702385266,0.72457,2759.7,2759.6,21.922]
[1749702385564,0.72456,2759.8,2759.6,44.21459]
[1749702385765,0.72457,2759.7,2759.6,21.922]
[1749702385963,1.81109,2760.3,2759.6,43.493]
[1749702385964,3.2078,2760.3,2759.6,43.493]
[1749702386167,6.45284317,2760.2,2759.7,0.72455]
[1749702386369,5.0156,2760.2,2759.8,0.72454]
[1749702386565,0.72451,2760.0,2759.8,0.72454]
[1749702386762,0.72452,2759.9,2759.8,0.72454]
[1749702387168,0.7245,2760.0,2759.8,0.72454]
[1749702387676,0.72447,2760.1,2759.9,0.72452]
[1749702387975,1.92947,2760.1,2759.9,0.72452]
[1749702388273,0.72449,2760.0,2759.8,0.72453]
[1749702388571,0.72449,2760.0,2759.9,21.549]
[1749702389174,1.92948,2760.1,2759.9,22.27349]